bitfinex/quotes_ETHUSD_20240707
["timestamp","ask_amount","ask_price","bid_price","bid_amount"]
[1720348782681,0.03270431,3023.9,3023.7,4.63001]
[1720348783280,0.03270431,3023.9,3023.7,2.31498]
[1720348784011,0.03270431,3023.9,3023.7,2.31497]
[1720348784216,0.03270431,3023.9,3023.7,4.62994]
[1720348784604,0.03270431,3023.9,3023.8,2.31496]
[1720348785287,0.03270431,3023.9,3023.5,2.31516]
[1720348785288,0.33597474,3023.9,3023.6,2.31506]
[1720348785490,0.33597474,3023.9,3023.7,2.31501]
[1720348787441,0.33597474,3023.9,3023.6,2.3151]
[1720348788244,3.0,3023.6,3023.2,2.31539]
[1720348788525,3.0,3023.6,3023.3,2.31533]
[1720348788818,0.03283667,3023.5,3023.2,2.31539]
[1720348790011,0.03283667,3023.5,3023.3,2.31532]
[1720348791291,0.03283667,3023.5,3023.2,2.31541]
[1720348791716,0.03283667,3023.5,3023.3,2.31534]
[1720348792629,0.03283667,3023.5,3023.4,4.63054]
[1720348792827,3.0,3023.8,3023.5,2.31513]
[1720348793041,0.72508366,3023.8,3023.5,2.31513]
[1720348793385,0.72508366,3023.8,3023.4,2.31522]
[1720348793917,0.72508366,3023.8,3023.5,2.31513]
[1720348794120,0.72508366,3023.8,3023.6,2.31511]
[1720348794423,4.25083659,3024.0,3023.6,2.31511]
[1720348795911,4.25083659,3024.0,3023.2,2.31538]
[1720348796093,4.25083659,3024.0,3023.4,2.31521]
[1720348796500,4.25083659,3024.0,3023.5,2.31519]
[1720348797186,2.2975,3023.9,3023.3,2.31529]
[1720348797391,3.0,3023.7,3023.3,2.31529]
[1720348797891,3.0,3023.7,3023.1,2.31549]
[1720348798120,0.55,3023.6,3023.1,2.31549]
[1720348798300,0.38958587,3023.5,3023.1,2.31549]
[1720348798828,3.0,3023.2,3022.7,2.31576]
[1720348799026,5.2975,3023.2,3022.7,2.31576]
[1720348800389,7.61292,3023.2,3022.5,2.31589]
[1720348800610,1.311292,3023.1,3022.5,2.31589]
[1720348800991,3.626812,3023.1,3022.3,2.31605]
[1720348801186,3.626812,3023.1,3022.4,2.31604]
[1720348801726,3.0,3022.7,3022.1,2.31623]
[1720348801926,0.3,3022.6,3022.1,2.31623]
[1720348802230,2.5975,3022.6,3021.9,2.31637]
[1720348802723,0.55,3022.5,3022.0,2.3163]
[1720348805430,0.55,3022.5,3021.4,2.31675]
[1720348805431,3.0,3022.7,3022.3,2.31608]
[1720348806020,0.03083153,3022.6,3022.3,2.31608]
[1720348806645,0.03083153,3022.6,3022.1,2.31625]
[1720348806646,0.03083153,3022.6,3022.1,4.63246]
[1720348806944,0.33391468,3022.6,3021.9,4.63274]
[1720348807239,0.33391468,3022.6,3021.9,2.31636]
[1720348807614,0.55,3022.5,3021.9,2.31636]
[1720348807814,0.58075825,3022.5,3021.9,2.31636]
[1720348808021,1.20072339,3022.5,3021.9,2.31636]
[1720348808242,3.49822339,3022.5,3021.9,2.31636]
[1720348808912,3.0,3022.2,3021.7,4.63306]
[1720348809109,3.0,3022.2,3021.7,2.31652]
[1720348809310,0.03058303,3022.1,3021.7,2.31652]
[1720348809712,0.03058303,3022.1,3021.5,2.3167]
[1720348810034,5.3165,3021.8,3021.3,0.1127726]
[1720348810530,5.89687453,3021.7,3021.3,0.1127726]
[1720348810738,1.12133745,3021.6,3021.3,0.1127726]
[1720348810921,0.55,3021.5,3021.3,0.1127726]
[1720348811252,0.58036843,3021.5,3021.3,0.1127726]
[1720348811621,5.2975,3021.4,3021.3,0.1127726]
[1720348811849,5.8475,3021.4,3021.3,0.1127726]
[1720348812033,7.04092006,3021.4,3021.3,0.1127726]
[1720348812349,9.35772006,3021.4,3021.3,0.1127726]
[1720348812845,7.04092006,3021.4,3021.3,0.1127726]
[1720348813240,4.74342006,3021.4,3021.3,0.1127726]
[1720348813439,0.03015647,3021.4,3021.3,0.1127726]
[1720348813646,3.214,3022.1,3021.3,2.4296526]
[1720348813820,3.214,3022.1,3021.6,2.31665]
[1720348814152,3.0,3022.0,3021.6,2.31665]
[1720348814318,3.31,3022.3,3021.8,2.31643]
[1720348814517,3.31,3022.3,3022.0,2.31629]
[1720348814715,3.31,3022.3,3022.0,4.63257]
[1720348815478,3.31,3022.3,3022.0,2.31628]
[1720348815959,3.31,3022.3,3022.0,4.63255]
[1720348816113,3.31,3022.3,3022.1,2.31626]
[1720348816548,3.0,3022.2,3022.0,2.31632]
[1720348816757,3.0,3022.2,3021.9,2.31641]
[1720348816980,3.0,3022.2,3022.0,2.31628]
[1720348817266,3.31,3022.3,3022.1,2.31626]
[1720348817559,3.0,3022.6,3022.4,2.31603]
[1720348817940,3.72508366,3022.6,3022.0,2.31628]
[1720348819057,0.55,3022.5,3022.0,2.31628]
[1720348819425,0.55,3022.5,3021.8,2.31644]
[1720348819844,0.55,3022.5,3022.1,2.31626]
[1720348820756,3.0,3022.6,3022.3,2.31605]
[1720348820934,0.03030156,3022.4,3022.3,2.31605]
[1720348821130,3.72508366,3022.6,3022.3,2.31605]
[1720348821330,0.03026087,3022.4,3022.3,2.31605]
[1720348821546,3.72508366,3022.6,3022.3,2.31605]
[1720348821750,0.03032616,3022.4,3022.3,2.31605]
[1720348821951,3.0,3022.6,3022.4,2.31603]
[1720348822157,3.3,3022.6,3022.4,2.31603]
[1720348822463,3.3,3022.6,3022.1,2.31623]
[1720348823466,3.3,3022.6,3022.2,2.31618]
[1720348823637,3.0,3022.6,3022.3,2.31611]
[1720348826070,4.25083659,3023.0,3022.5,2.31596]
[1720348826371,6.31,3023.1,3022.6,2.31582]
[1720348826536,6.31,3023.1,3022.7,2.31574]
[1720348826741,4.25083659,3023.3,3023.0,2.31558]
[1720348826940,4.25083659,3023.3,3023.0,4.63109]
[1720348827158,4.25083659,3023.3,3023.2,2.31542]
[1720348827359,3.0,3023.4,3023.2,2.31542]
[1720348827871,3.3,3023.4,3023.0,2.31551]
[1720348829395,3.3,3023.4,3022.8,2.3157]
[1720348829980,3.0,3023.0,3022.6,4.63164]
[1720348830363,3.0,3023.0,3022.7,2.3158]
[1720348830960,3.0,3023.0,3022.4,2.31601]
[1720348831278,3.0,3022.6,3022.3,2.31611]
[1720348831452,3.0,3022.6,3022.3,4.63215]
[1720348831653,3.0,3022.6,3022.3,2.31604]
[1720348831962,3.0,3022.6,3022.2,2.31619]
[1720348832359,0.0637645,3022.5,3022.2,2.31619]
[1720348832693,0.0637645,3022.5,3022.3,2.31608]
[1720348833243,0.0637645,3022.5,3022.4,2.31604]
[1720348833443,3.0,3022.6,3022.4,2.31604]
[1720348833761,3.0,3022.6,3022.5,2.31596]
[1720348834187,3.0,3023.2,3022.7,2.31578]
[1720348834362,3.0,3023.2,3022.7,4.63153]
[1720348834546,0.063816,3023.1,3022.7,4.63153]
[1720348835051,0.063816,3023.1,3022.7,2.31575]
[1720348835276,0.063816,3023.1,3022.9,2.31564]
[1720348835687,0.063816,3023.1,3022.9,2.31558]
[1720348835974,0.063816,3023.1,3023.0,2.31558]
[1720348836183,0.063816,3023.1,3022.9,2.31558]
[1720348836478,0.063816,3023.1,3022.7,0.06615969]
[1720348836479,0.063816,3023.1,3022.7,2.31578]
[1720348836685,0.3701976,3023.1,3022.3,2.31607]
[1720348836995,0.3701976,3023.1,3022.5,2.31591]
[1720348838278,0.06393352,3023.0,3022.5,2.31591]
[1720348840485,3.0,3022.6,3022.0,2.31631]
[1720348840688,3.0,3022.6,3022.4,2.31603]
[1720348840857,0.06168821,3022.5,3022.4,2.31603]
[1720348842801,3.0,3022.6,3022.4,4.63206]
[1720348842957,0.06170798,3022.5,3022.4,2.31603]
[1720348844690,0.06170798,3022.5,3022.4,4.63207]
[1720348844871,4.25083659,3023.0,3022.8,2.31569]
[1720348845391,4.25083659,3023.0,3022.4,4.63197]
[1720348845599,4.25083659,3023.0,3022.4,2.31597]
[1720348845917,0.06179223,3022.9,3022.4,2.31599]
[1720348846090,0.06179223,3022.9,3022.4,4.63197]
[1720348846293,0.06179223,3022.9,3022.4,2.31598]
[1720348847286,0.06179223,3022.9,3022.5,2.3159]
[1720348847663,0.06173761,3022.8,3022.5,2.3159]
[1720348847891,4.25083659,3023.0,3022.2,2.31615]
[1720348848095,0.06175518,3022.7,3022.4,2.31599]
[1720348848300,0.97247366,3022.9,3022.4,2.31599]
[1720348848504,0.06172034,3022.6,3022.0,2.3163]
[1720348848708,3.0,3022.6,3022.2,2.31615]
[1720348849009,0.0617625,3022.5,3022.2,4.63228]
[1720348849311,0.0617625,3022.5,3022.2,2.31613]
[1720348850087,3.0,3022.2,3021.8,2.31647]
[1720348850590,0.06149877,3022.1,3021.8,4.63292]
[1720348850792,0.06149877,3022.1,3021.9,2.31642]
[1720348851481,0.06149877,3022.1,3021.8,2.31645]
[1720348852190,0.06149877,3022.1,3021.9,2.31642]
[1720348852394,2.4323,3022.0,3021.3,0.1127726]
[1720348852604,3.0,3021.8,3021.3,2.4296026]
[1720348853015,0.0591025,3021.7,3021.3,2.4296026]
[1720348853310,3.0,3021.8,3021.3,2.4296026]
[1720348853517,0.0591275,3021.6,3021.3,2.4296026]
[1720348853676,0.05918218,3021.7,3021.3,0.1127726]
[1720348853862,0.05913227,3021.5,3021.3,0.1127726]
[1720348854073,3.0,3021.4,3021.3,0.1127726]
[1720348854268,3.05878508,3021.4,3021.3,0.1127726]
[1720348854473,3.59633459,3021.4,3021.3,0.1127726]
[1720348855393,8.34543459,3021.4,3021.3,0.1127726]
[1720348855596,8.89543459,3021.4,3021.3,0.1127726]
[1720348859396,6.02863459,3021.4,3021.3,0.1127726]
[1720348859595,3.05878508,3021.4,3021.3,0.1127726]
[1720348862662,0.05878508,3021.4,3021.3,0.1127726]
[1720348863131,3.05655981,3021.4,3021.3,0.1127726]
[1720348864271,0.05655981,3021.4,3021.3,2.4296526]
[1720348864402,0.05655981,3021.4,3021.3,0.1127726]
[1720348864724,3.31,3021.6,3021.3,0.1127726]
[1720348865034,3.0,3021.4,3021.3,0.1127726]
[1720348865235,3.05457643,3021.4,3021.3,0.1127726]
[1720348866221,5.53537643,3021.4,3021.3,0.1127726]
[1720348867006,3.21857643,3021.4,3021.3,0.1127726]
[1720348870453,3.05457643,3021.4,3021.3,0.1127726]
[1720348870668,6.78951307,3021.4,3021.3,0.1127726]
[1720348870821,9.45085082,3021.4,3021.3,0.1127726]
[1720348871020,15.50540582,3021.4,3021.3,0.1127726]
[1720348871653,9.45085082,3021.4,3021.3,0.1127726]
[1720348872022,18.49047182,3021.4,3021.3,0.1127726]
[1720348873126,24.57918175,3021.4,3021.3,0.1127726]
[1720348873453,25.04018114,3021.4,3021.3,0.1127726]
[1720348874242,3.0,3020.3,3019.8,2.31798]
[1720348874566,0.05426397,3020.2,3019.8,2.31798]
[1720348874929,3.0,3020.3,3019.8,2.31798]
[1720348875162,0.05414662,3020.1,3019.8,2.31798]
[1720348875328,0.05418152,3020.2,3019.8,2.31798]
[1720348875524,0.05411172,3020.0,3019.8,2.31798]
[1720348875843,3.0,3020.3,3019.9,0.0662241]
[1720348876160,3.0,3020.3,3020.1,2.3178]
[1720348876544,3.31,3020.6,3020.5,2.31749]
[1720348876739,3.31,3020.6,3020.2,2.3021]
[1720348876740,6.31,3020.6,3020.2,2.3021]
[1720348876944,6.31,3020.6,3020.5,2.31749]
[1720348877328,6.31,3020.6,3020.5,4.63498]
[1720348878931,6.31,3020.6,3020.5,2.31749]
[1720348880756,6.31,3020.6,3020.5,4.63498]
[1720348880961,3.36418392,3020.6,3020.5,4.63498]
[1720348881160,0.05418392,3020.6,3020.5,12.88888896]
[1720348881562,4.25083659,3021.1,3021.0,7.10052]
[1720348881770,4.25083659,3021.1,3021.0,9.41763]
[1720348881933,4.25083659,3021.1,3021.0,12.41763]
[1720348884129,4.25083659,3021.1,3021.0,10.10052]
[1720348886265,4.25083659,3021.1,3020.8,2.31723]
[1720348886769,4.25083659,3021.1,3021.0,2.31711]
[1720348887153,7.25083659,3021.6,3021.2,2.31689]
[1720348887370,3.0,3021.6,3021.0,2.31708]
[1720348887528,3.0,3021.6,3021.3,2.31687]
[1720348888767,3.31,3021.7,3021.3,2.31687]
[1720348890342,0.331,3021.6,3021.3,2.31687]
[1720348891257,0.331,3021.6,3020.6,2.31737]
[1720348891258,3.0,3021.5,3020.6,2.31737]
[1720348891466,3.0,3021.5,3020.9,2.31711]
[1720348891682,3.0,3021.5,3020.8,2.31721]
[1720348892561,5.31673,3021.5,3020.7,2.31734]
[1720348892802,0.564773,3021.4,3020.7,2.31734]
[1720348893670,0.564773,3021.4,3020.7,4.63463]
[1720348893876,0.564773,3021.4,3020.8,2.31725]
[1720348895992,0.05476629,3021.3,3020.6,5.31737]
[1720348896193,0.67737366,3021.3,3020.6,5.31737]
[1720348896358,0.67737366,3021.3,3020.7,2.31733]
[1720348897895,3.0,3021.1,3020.5,2.31745]
[1720348898310,0.05448417,3021.0,3020.5,2.31745]
[1720348898815,0.05448417,3021.0,3020.3,2.31758]
[1720348898816,0.35993259,3021.0,3020.3,2.31758]
[1720348899095,0.35993259,3021.0,3020.4,2.31753]
[1720348899514,0.05268498,3020.9,3020.4,2.31753]
[1720348900014,0.05268498,3020.9,3020.5,2.31749]
[1720348900316,0.05268498,3020.9,3020.5,2.31744]
[1720348900680,6.3,3021.1,3020.5,2.31744]
[1720348900877,0.05271563,3021.0,3020.5,2.31744]
[1720348901115,0.05092356,3020.9,3020.6,2.31741]
[1720348901605,6.3,3021.1,3020.6,2.31741]
[1720348901809,0.05089291,3020.8,3020.6,2.31741]
[1720348902007,6.3,3021.1,3020.6,2.31741]
[1720348902207,0.05085803,3020.7,3020.6,5.098315]
[1720348902406,3.3,3021.1,3020.8,2.31722]
[1720348902585,3.3,3021.1,3020.6,2.31738]
[1720348902792,3.3,3021.1,3020.9,2.31718]
[1720348902988,3.3,3021.1,3020.9,2.31713]
[1720348903211,3.3,3021.1,3021.0,4.63422]
[1720348903512,4.25083659,3021.5,3021.0,4.63422]
[1720348903513,4.25083659,3021.5,3021.4,2.3168]
[1720348903809,3.31,3021.7,3021.5,2.31668]
[1720348904179,3.31,3021.7,3021.5,2.31667]
[1720348904605,3.31,3021.7,3021.6,2.31665]
[1720348906085,3.31,3021.7,3021.5,2.31667]
[1720348906818,3.31,3021.7,3021.6,2.31665]
[1720348907015,3.31,3021.7,3021.6,5.096632]
[1720348907190,3.36130736,3021.7,3021.6,4.6333]
[1720348907911,3.36130736,3021.7,3021.6,7.1079]
[1720348907912,0.05130736,3021.7,3021.6,7.1079]
[1720348908083,4.25083659,3022.0,3021.9,2.31642]
[1720348908289,4.3023392,3022.0,3021.9,2.31642]
[1720348908798,0.05150261,3022.0,3021.9,4.63284]
[1720348909111,3.0,3022.4,3022.1,4.63242]
[1720348909414,3.0,3022.4,3022.1,2.31621]
[1720348909815,3.0,3022.4,3022.1,4.63243]
[1720348909992,3.0,3022.4,3022.2,2.31618]
[1720348910192,19.65751559,3022.8,3022.2,2.31618]
[1720348910429,23.05552436,3022.8,3022.2,2.31618]
[1720348910919,0.05204856,3022.7,3022.2,2.31618]
[1720348912738,0.05204856,3022.7,3022.3,2.31605]
[1720348912935,0.05204856,3022.7,3022.5,2.31595]
[1720348913235,19.65751559,3022.8,3022.5,2.31595]
[1720348913437,0.05210896,3022.6,3022.5,2.31595]
[1720348913661,19.65751559,3022.8,3022.5,2.31595]
[1720348913812,0.05212873,3022.6,3022.5,2.31595]
[1720348914159,0.05195407,3022.6,3022.5,2.31595]
[1720348914337,0.05195407,3022.6,3022.5,2.77915]
[1720348914539,6.61,3022.9,3022.6,2.31584]
[1720348918347,6.61,3022.9,3022.6,4.63167]
[1720348918522,6.61,3022.9,3022.7,2.3158]
[1720348918723,6.61,3022.9,3022.4,0.06616564]
[1720348918724,6.61,3022.9,3022.4,4.63199]
[1720348918922,7.69608366,3022.9,3022.5,2.31591]
[1720348919256,7.69608366,3022.9,3022.6,2.31587]
[1720348919451,6.61,3022.9,3022.6,2.31587]
[1720348920927,6.61,3022.9,3022.4,2.31598]
[1720348921172,3.0,3022.6,3022.2,2.31613]
[1720348921526,3.0,3022.6,3021.7,3.0]
[1720348921719,3.0,3022.6,3022.1,2.31626]
[1720348921952,3.0,3022.6,3022.0,2.31629]
[1720348922248,3.0,3022.6,3021.8,2.31643]
[1720348922418,3.0,3022.2,3021.3,2.4286]
[1720348922622,0.3,3022.1,3021.8,2.31649]
[1720348922826,3.0,3022.2,3021.8,2.31649]
[1720348923673,4.25083659,3022.3,3022.0,2.31627]
[1720348923880,5.564,3022.9,3022.2,2.31614]
[1720348923881,3.0,3022.4,3022.2,2.31614]
[1720348924374,4.25083659,3022.7,3022.2,4.63226]
[1720348924652,4.25083659,3022.7,3022.3,2.31611]
[1720348925529,3.0,3022.4,3021.8,2.31644]
[1720348925739,3.0,3022.4,3021.9,2.31641]
[1720348925941,0.05165451,3022.3,3021.9,2.31641]
[1720348928359,0.05165451,3022.3,3022.2,2.31619]
[1720348928557,0.05165451,3022.3,3022.2,2.79728662]
[1720348928742,4.25083659,3022.7,3022.6,2.31588]
[1720348929334,4.25083659,3022.7,3022.6,4.63176]
[1720348930442,4.25083659,3023.2,3023.0,2.31557]
[1720348931648,4.25083659,3023.2,3023.1,2.3155]
[1720348931842,3.0,3023.6,3023.1,2.3155]
[1720348932171,5.5174,3023.6,3023.1,2.3155]
[1720348934452,5.5174,3023.6,3023.1,4.63095]
[1720348935149,3.0,3023.6,3023.1,4.63095]
[1720348936454,3.0,3023.6,3023.1,2.31545]
[1720348936676,3.0,3023.6,3022.9,2.31563]
[1720348936880,2.3211,3023.5,3022.5,2.31594]
[1720348937079,0.55,3023.4,3022.8,2.31573]
[1720348938070,0.34524826,3023.6,3023.4,2.31521]
[1720348938270,4.25083659,3023.7,3023.4,2.31521]
[1720348938476,3.95083659,3023.7,3023.4,2.31521]
[1720348939561,3.65083659,3023.7,3023.4,2.31521]
[1720348940185,3.65083659,3023.7,3023.5,2.31519]
[1720348941056,0.04982043,3023.6,3023.5,2.31519]
[1720348941289,0.04982043,3023.6,3023.5,4.63038]
[1720348944384,0.04834578,3023.6,3023.3,2.31534]
[1720348944591,0.04834578,3023.6,3023.3,2.31529]
[1720348944757,5.3211,3024.0,3023.3,2.31529]
[1720348945080,0.04834527,3023.5,3023.3,2.31529]
[1720348945285,0.89719366,3023.9,3023.3,4.63059]
[1720348945487,0.04831045,3023.4,3023.3,2.31529]
[1720348945685,5.3211,3024.0,3023.3,2.31529]
[1720348945884,0.55,3023.9,3023.3,2.31529]
[1720348946087,0.55,3023.9,3023.1,2.31544]
[1720348946088,0.58711,3023.8,3023.1,2.31544]
[1720348946390,0.04672027,3023.7,3023.2,2.3154]
[1720348948085,0.04672027,3023.7,3023.1,2.31544]
[1720348948386,3.0,3023.6,3023.2,2.31541]
[1720348948768,0.04664133,3023.5,3023.2,2.31541]
[1720348949812,0.04664133,3023.5,3023.3,2.31533]
[1720348951873,0.04664133,3023.5,3023.1,2.31544]
[1720348952078,0.04664133,3023.5,3023.2,2.31537]
[1720348952279,0.04664133,3023.5,3023.3,2.31534]
[1720348954493,0.04664133,3023.5,3023.4,4.63054]
[1720348954702,0.04664133,3023.5,3023.4,5.10020848]
[1720348955012,3.0,3023.8,3023.6,2.31509]
[1720348955381,0.04485163,3023.7,3023.4,2.3152]
[1720348955581,3.0,3023.8,3023.6,2.31512]
[1720348955980,0.0449412,3023.7,3023.4,2.3152]
[1720348956197,3.0,3023.8,3023.4,2.3152]
[1720348956414,0.04479703,3023.6,3023.5,2.31519]
[1720348956608,3.0,3023.8,3023.6,2.31509]
[1720348957496,3.0,3023.8,3023.4,4.63042]
[1720348957693,3.53211,3023.8,3023.0,2.31553]
[1720348957893,3.53211,3023.8,3023.0,2.31551]
[1720348958103,0.55,3023.7,3023.0,2.31551]
[1720348958813,3.0,3023.3,3022.9,2.31563]
[1720348959032,3.0,3023.3,3022.6,2.31584]
[1720348959185,3.0,3022.9,3022.4,2.31603]
[1720348960093,3.0,3022.9,3022.2,2.31614]
[1720348960294,3.531551,3022.9,3022.2,4.63228]
[1720348960714,3.0,3022.5,3021.5,2.4696]
[1720348960896,3.0,3022.5,3021.9,2.3164]
[1720348962714,3.0,3022.5,3021.7,2.31656]
[1720348962888,2.31604,3022.4,3021.6,2.3166]
[1720348963089,2.86604,3022.4,3021.6,2.3166]
[1720348963296,2.86604,3022.4,3021.6,4.63319]
[1720348964518,2.86604,3022.4,3021.6,2.31659]
[1720348964719,3.0,3022.0,3021.6,2.31659]
[1720348964919,3.0,3022.0,3021.5,2.31672]
[1720348965219,3.0,3022.0,3021.4,2.31679]
[1720348966003,3.52652,3022.0,3021.4,2.31679]
[1720348966427,5.84288,3022.0,3021.2,2.31692]
[1720348966622,5.84288,3022.0,3021.0,2.3171]
[1720348966623,5.84288,3022.0,3021.1,2.31701]
[1720348966811,0.55,3021.9,3021.1,2.31701]
[1720348967318,2.86643,3021.9,3021.1,2.31701]
[1720348967515,3.0,3021.6,3021.1,2.31701]
[1720348970904,0.0428553,3021.5,3021.1,4.63399]
[1720348971437,0.0428553,3021.5,3021.2,2.31695]
[1720348972325,0.0428553,3021.5,3021.3,2.38306409]
[1720348972522,0.0428553,3021.5,3021.4,4.69978869]
[1720348972727,3.0,3022.0,3021.7,2.31655]
[1720348973037,3.0,3022.0,3021.5,2.31667]
[1720348973599,3.0,3022.0,3021.6,2.3166]
[1720348975436,6.96083659,3022.2,3021.7,2.31657]
[1720348975817,6.96083659,3022.2,3021.8,2.31645]
[1720348976147,3.31,3022.2,3021.8,4.63287]
[1720348977308,3.31,3022.2,3021.9,2.31639]
[1720348982643,3.31,3022.2,3021.7,4.63308]
[1720348982842,3.31,3022.2,3021.7,4.63304]
[1720348983139,3.31,3022.2,3021.7,2.31651]
[1720348983349,3.0,3022.0,3021.3,2.3168]
[1720348983663,2.4828,3021.9,3021.3,4.63363]
[1720348983851,2.4828,3021.9,3021.5,0.2]
[1720348984249,3.0,3022.0,3021.6,2.31664]
[1720348984455,3.0,3022.0,3021.6,4.63322]
[1720348984763,3.31,3022.2,3022.0,2.31631]
[1720348986127,0.03997434,3022.1,3022.0,2.31631]
[1720348986332,0.03997434,3022.1,3021.8,2.31643]
[1720348986552,0.03997434,3022.1,3021.9,2.31637]
[1720348987028,0.03997434,3022.1,3021.5,2.51671]
[1720348987261,0.03997434,3022.1,3021.5,4.83338]
[1720348987647,3.0,3021.9,3021.5,0.2]
[1720348988067,0.03833947,3021.8,3021.5,0.4]
[1720348988365,0.03833947,3021.8,3021.5,2.71671]
[1720348990451,0.03833947,3021.8,3021.5,0.4]
[1720348990664,0.59045342,3021.8,3021.5,0.4]
[1720348991161,0.75445342,3021.8,3021.5,0.4]
[1720348991735,3.07100342,3021.8,3021.5,0.4]
[1720348991936,0.55,3021.7,3021.5,0.4]
[1720348992369,0.03811428,3021.6,3021.5,0.4]
[1720348992868,0.4001921,3021.6,3021.5,0.4]
[1720348993037,0.9501921,3021.6,3021.5,0.4]
[1720348993769,5.5213421,3021.6,3021.5,0.4]
[1720348995476,3.2046921,3021.6,3021.5,0.4]
[1720348996753,5.5213421,3021.6,3021.5,0.4]
[1720348996953,0.9501921,3021.6,3021.5,0.4]
[1720348997762,0.03811428,3021.6,3021.5,0.4]
[1720349006179,0.03811428,3021.6,3021.5,2.71673]
[1720349007082,0.03811428,3021.6,3021.5,5.03346]
[1720349008561,0.03811428,3021.6,3021.5,0.4]
[1720349011366,0.58811428,3021.6,3021.5,0.4]
[1720349012091,6.7417563,3021.6,3021.5,0.4]
[1720349012258,11.36944665,3021.6,3021.5,0.4]
[1720349013959,14.36944665,3021.6,3021.5,0.4]
[1720349014157,20.33706617,3021.6,3021.5,0.4]
[1720349015057,3.0,3020.6,3020.1,2.31779]
[1720349015258,5.70393148,3020.5,3019.9,2.31792]
[1720349016285,3.0,3020.2,3019.9,2.31792]
[1720349016586,0.03422839,3020.1,3019.9,2.31792]
[1720349017660,0.03422839,3020.1,3019.5,2.31822]
[1720349017960,0.03422839,3020.1,3019.6,2.31818]
[1720349018177,0.30342284,3020.0,3019.4,2.31829]
[1720349018390,0.30342284,3020.0,3019.3,2.31841]
[1720349018590,0.0337881,3019.9,3019.3,2.31841]
[1720349021491,3.0,3020.2,3019.3,0.06623587]
[1720349021786,3.0,3020.2,3019.0,2.31862]
[1720349021787,0.03248702,3020.1,3019.6,4.63622]
[1720349022690,0.03248702,3020.1,3019.8,2.31797]
[1720349022892,0.03248702,3020.1,3019.9,2.31795]
[1720349023595,0.03248702,3020.1,3020.0,4.63576]
[1720349023898,3.65083659,3020.4,3020.2,2.31771]
[1720349024099,0.03149636,3020.3,3020.2,2.31771]
[1720349024295,3.31,3020.5,3020.2,2.31771]
[1720349024478,3.31,3020.5,3020.0,2.31788]
[1720349024479,0.03153125,3020.4,3020.0,2.31788]
[1720349024680,0.03153125,3020.4,3019.9,2.31793]
[1720349024681,3.0,3020.3,3019.9,2.31793]
[1720349024891,0.03146147,3020.2,3019.9,2.31793]
[1720349025090,3.0,3020.3,3019.9,2.31793]
[1720349025398,0.03133369,3020.2,3019.6,2.31813]
[1720349025605,0.03133369,3020.2,3019.7,2.31806]
[1720349025899,0.03133369,3020.2,3019.8,2.31803]
[1720349026077,3.0,3020.3,3019.7,2.31809]
[1720349026277,0.03133369,3020.2,3019.7,2.31809]
[1720349027976,0.03133369,3020.2,3020.0,2.31783]
[1720349028376,3.0,3020.3,3020.0,2.31783]
[1720349028886,0.02916829,3020.2,3020.0,2.31783]
[1720349029091,3.0,3020.3,3020.0,2.31783]
[1720349029287,0.02916829,3020.2,3020.0,2.31783]
[1720349029479,3.0,3020.3,3020.0,2.31783]
[1720349029679,0.02916829,3020.2,3020.0,2.31783]
[1720349029893,3.0,3020.3,3020.0,2.31783]
[1720349030106,0.02916829,3020.2,3019.8,2.31798]
[1720349030304,3.0,3020.3,3019.8,2.31798]
[1720349030707,0.02911219,3020.2,3019.8,2.31798]
[1720349030919,3.0,3020.3,3019.8,2.31798]
[1720349031213,0.02911219,3020.2,3019.8,2.31798]
[1720349031613,3.0,3020.3,3019.8,2.31798]
[1720349031813,0.02907729,3020.1,3019.8,2.31798]
[1720349032029,3.0,3020.3,3019.8,4.63594]
[1720349032030,0.03119163,3020.2,3019.8,4.63594]
[1720349032209,0.03111685,3020.0,3019.9,2.31795]
[1720349032514,0.02904239,3020.0,3019.9,2.31795]
[1720349032716,3.0,3020.3,3019.9,2.31795]
[1720349035209,3.0,3020.3,3019.3,5.31836]
[1720349035210,3.0,3020.3,3019.7,2.31806]
[1720349035514,6.48838366,3020.3,3019.7,2.31806]
[1720349036292,3.0,3019.9,3019.5,2.31819]
[1720349036498,3.0,3019.9,3019.6,2.31817]
[1720349038484,3.3,3019.9,3019.4,2.31828]
[1720349039783,3.3,3019.9,3019.2,2.31842]
[1720349040018,3.3,3019.9,3019.3,2.31837]
[1720349040429,3.3,3019.9,3019.4,2.31833]
[1720349040720,3.0,3019.9,3019.5,2.31821]
[1720349041019,3.0,3019.9,3019.4,2.31833]
[1720349041491,3.0,3019.9,3019.4,2.31828]
[1720349041691,3.0,3019.9,3019.4,4.63656]
[1720349041892,3.0,3019.9,3019.5,2.31824]
[1720349042092,3.0,3019.9,3019.6,2.31811]
[1720349043418,3.3,3019.9,3019.5,4.63645]
[1720349043618,3.0,3019.9,3019.6,2.31817]
[1720349044129,6.48838366,3020.3,3019.7,2.31808]
[1720349044325,6.48838366,3020.3,3019.7,2.31805]
[1720349044620,6.48838366,3020.3,3019.7,4.6361]
[1720349044819,6.48838366,3020.3,3019.8,2.31802]
[1720349045214,3.0,3020.3,3019.9,2.31794]
[1720349045524,3.0,3020.3,3020.0,2.31787]
[1720349048029,3.0,3020.3,3019.8,2.31797]
[1720349048239,3.0,3020.3,3019.7,2.31806]
[1720349048401,3.0,3020.3,3019.6,2.31817]
[1720349048602,0.3,3020.2,3019.6,2.31817]
[1720349051127,3.34392965,3020.3,3019.9,2.31791]